Cogmind - Beta 17.1 @@@ ROGUE MODE // 2026.08.30 @ 21:19:31 Player: UnderDoug Result: Destroyed by 41-MH4(R) with Subdweller Machine Gun Performance ------------- Evolutions (0) 0 Regions Visited (2) 400 Robots Destroyed (23) 115 Value Destroyed (718) 718 Prototype IDs (18) 360 Alien Tech Used (0) 0 Bonus (0) 0 TOTAL SCORE: 1593 Bonus ------- None Cogmind --------- Core Integrity 0/250 Matter 134/300 Energy 125/125 System Corruption 12% Temperature Cool (0) Movement Walking (120) Location -10/Subcaves Parts ------- > --- POWER (1) -------- Light Ion Engine > --- PROPULSION (2) --- Aluminum Leg Aluminum Leg > --- UTILITY (2) ------ (None) > --- WEAPON (2) ------- Assault Rifle (fused) Subdweller Shrapnel Launcher > --- INVENTORY (5) ---- Spiked Treads Signal Interpreter Tower Shield Heavy Hammer Peak State ------------ > --- POWER ------------ Light Nuclear Core > --- PROPULSION ------- Wheel Compact Wheel > --- UTILITY ---------- Visual Processing Unit Hardened Light Armor Plating > --- WEAPON ----------- Improved Light Cannon Heavy Hammer > --- INVENTORY -------- Light Ion Engine Signal Interpreter EM Shotgun EM Shotgun Assault Rifle [Rating: 13] Favorites ----------- Power Light Ion Engine Engine Light Ion Engine Power Core Light Nuclear Core Propulsion Aluminum Leg Leg Aluminum Leg Wheel Compact Wheel Utility Scrap Shield Device Heat Sink Storage Small Storage Unit Processor Visual Processing Unit Protection Scrap Shield Weapon Heavy Hammer Energy Gun EM Shotgun Ballistic Gun Assault Rifle Ballistic Cannon Improved Light Cannon Launcher Grenade Launcher Impact Weapon Heavy Hammer Build | -11 -10 -10 ------- Run | Yrd Mat Sub Slots Evolved . | . . . Power . | . . . Propulsion . | . . . Utility . | . . . Weapon . | . . . Parts Attached 26 | 6 13 7 Power 5 | 1 2 2 Engine 4 | 1 1 2 Core 1 | . 1 . Reactor . | . . . Propulsion 7 | 2 4 1 Treads . | . . . Leg 3 | . 2 1 Wheel 4 | 2 2 . Hover . | . . . Flight . | . . . Utility 7 | 1 4 2 Device 2 | . 1 1 Storage 1 | 1 . . Processor 1 | . 1 . Hackware . | . . . Protection 3 | . 2 1 Artifact . | . . . Weapon 7 | 2 3 2 Energy Gun 1 | . . 1 Energy Cannon . | . . . Ballistic Gun 2 | 2 . . Ballistic Cannon 1 | . 1 . Launcher 2 | . 1 1 Special Weapon . | . . . Impact Weapon 1 | . 1 . Slashing Weapon . | . . . Piercing Weapon . | . . . Special Melee Weapon . | . . . Unidentified Prototypes . | . . . Corrupted Parts 2 | . . 2 System Corruption 12 | . . 12 Parts Lost 5 | . 1 4 Power 1 | . . 1 Propulsion 2 | . 1 1 Utility 1 | . . 1 Weapon 1 | . . 1 Highest Loss Streak 2 | . 1 2 To Critical Strikes . | . . . Average Backups 4 | 2 5 3 Power . | . 1 . Propulsion . | 1 1 . Utility 1 | . . 1 Weapon 1 | . 2 1 Tool/Special . | . . . Unused Backups 9 | . 5 4 Power . | . . . Propulsion 5 | . 4 1 Utility 2 | . . 2 Weapon 2 | . 1 1 Tool/Special . | . . . Average Slot Usage (%) 87 | . 96 84 Engine 12 | . 10 13 Core 1 | . 3 . Leg 20 | . 1 26 Wheel 6 | . 25 . Device 2 | . 6 . Processor 3 | . 10 . Protection 11 | . 5 14 Energy Gun 1 | . . 2 Ballistic Gun 9 | . 3 11 Ballistic Cannon 2 | . 11 . Impact Weapon 13 | . 11 13 Peak Build Rating 13 | 6 13 13 Average Rating 11 | 5 10 11 On Entrance 6 | . 6 13 Avg Prop Armor Cover (%) 4 | . 4 . Naked Turns . | . . . Heaviest Build 31 | 11 17 31 Greatest Support 32 | 32 32 20 Greatest Overweight (x) 2 | . 1 2 Average Overweight (x) . | . . 1 Largest Inventory Capacity 8 | 8 8 5 Average Capacity 5 | 6 5 5 Most Carried 8 | 6 8 5 Average Carried 4 | 2 5 4 Final Capacity 8 | 8 5 5 Final Carried 6 | 6 5 5 Class Distribution -------------------- 89% | Mutant 10% | Scavenger-Mutant Dominant Class ---------------- Mutant | -10/Materials Mutant | -10/Subcaves Resources | -11 -10 -10 ----------- Run | Yrd Mat Sub Matter Collected 792 | 241 331 220 Remotely . | . . . Salvage Created 693 | . 398 295 Parts 39 | . 25 14 Haulers Intercepted . | . . . Recyclers Shooed . | . . . Parts Field Recycled . | . . . Retrieved Matter . | . . . Parts Self-Destructed 5 | . . 5 Prevented 1 | . . 1 Parts Restored . | . . . Kills | -11 -10 -10 ------- Run | Yrd Mat Sub Combat Hostiles Destroyed 20 | . 14 6 Melee 4 | . 4 . Guns 3 | . . 3 Cannons 7 | . 7 . AOE 3 | . 2 1 Classes Destroyed 6 | . 5 1 Worker 1 | . 1 . Tunneler 1 | . 1 . Watcher 1 | . 1 . Swarmer 3 | . 3 . Grunt 13 | . 11 2 Subdweller 4 | . . 4 Best Kill Streak 5 | . 5 2 Combat Bots Only 3 | . 3 2 Max Kills in Single Turn 2 | . 2 1 Gunslinging . | . . . Exploded 1 | . 1 1 Melee 1 | . 1 . Uniques/NPCs Destroyed . | . . . Combat | -11 -10 -10 -------- Run | Yrd Mat Sub Hostile Shots Fired 141 | . 70 71 Missed 42 | . 20 22 Hits 99 | . 50 49 Projectile 99 | . 50 49 Critical Strikes 2 | . . 2 Damage Taken 1503 | . 539 964 Core 259 | . 98 161 Absorbed by Shields . | . . . Core Remaining (%) 100 | 100 . . Volleys Fired 80 | . 42 38 Largest 2 | . 2 2 Hottest 60 | . 50 60 Shots Fired 96 | . 48 48 Gun 45 | . 6 39 Cannon 38 | . 36 2 Launcher 13 | . 6 7 Special . | . . . Kinetic 63 | . 42 21 Thermal . | . . . Explosive 6 | . 6 . Electromagnetic 27 | . . 27 Robot Hit Streak 14 | . 7 14 Robot Miss Streak 3 | . 3 2 Penetration Max . | . . . Secondary Targets . | . . . Shots Hit Robots 79 | . 42 37 Core Hits 46 | . 27 19 Critical Kills 1 | . 1 . Critical Parts Destroyed 1 | . 1 . Critical Strikes 3 | . 3 . Blast 1 | . 1 . Smash 2 | . 2 . Melee Attacks 18 | . 12 6 Impact 18 | . 12 6 Slashing . | . . . Piercing . | . . . Sneak Attacks . | . . . Combat Hostiles . | . . . Follow-up Attacks . | . . . Damage Inflicted 2441 | . 1347 1094 Guns 485 | . 30 455 Cannons 526 | . 506 20 Explosions 920 | . 415 505 Melee 496 | . 382 114 Ramming 14 | . 14 . Kinetic 1067 | . 536 531 Thermal 42 | . . 42 Explosive 415 | . 415 . Electromagnetic 407 | . . 407 Impact 496 | . 382 114 Slashing . | . . . Piercing . | . . . Highest Corruption 12 | . . 12 Average Corruption 11 | . . 11 Corruption Purged . | . . . Corruption Blocked . | . . . Effects 70 | . . 70 Message Errors 16 | . . 16 Matter Fused 17 | . . 17 Heat Flow Errors 14 | . . 14 Energy Discharges 5 | . . 5 Parts Fused 1 | . . 1 Data Loss (minor) 10 | . . 10 Data Loss (major) 2 | . . 2 Misfires 3 | . . 3 Alerts 2 | . . 2 Overload Shots . | . . . Overflow Damage 91 | . 75 16 Projectiles . | . . . Explosions 6 | . 6 . Melee 85 | . 69 16 Knockbacks 11 | . 11 . Impact 1 | . 1 . Kinetic 10 | . 10 . Secondary . | . . . Self-Inflicted Damage 39 | . 6 33 Shots 2 | . . 2 Rammed 3 | . 3 . Targets Rammed 3 | . 3 . Kicked . | . . . Crushed . | . . . Highest Temperature 259 | . 56 259 Average Temperature 64 | . 22 97 Received Heat Transfer 495 | . 228 267 Siege Activations . | . . . Martial Activations . | . . . Shielding Activations . | . . . Robots Disrupted . | . . . Combat Hostiles . | . . . Robots Corrupted 3 | . 1 2 Combat Hostiles 3 | . 1 2 Parts Fried 3 | . 1 2 Impact Corruptions 3 | . 2 1 Robots Melted . | . . . Combat Hostiles . | . . . Parts Melted . | . . . Heat Transferred 50 | . . 50 Parts Sabotaged . | . . . Parts Stolen . | . . . Parts Stripped . | . . . Power Chain Reactions 1 | . . 1 Alert | -11 -10 -10 ------- Run | Yrd Mat Sub Maximum Alert Level 1 | . 1 . Low Security (%) 88 | 100 87 . Level 1 11 | . 12 . Level 2 . | . . . Level 3 . | . . . Level 4 . | . . . Level 5 . | . . . High Security . | . . . Max Security . | . . . Peak Influence 230 | . 230 . Initial . | . . . Average 125 | . 135 . Influence Increases 517 | . 467 50 Destroy 0b10 Robot/C 320 | . 280 40 Destroy 0b10 Robot/NC 15 | . 15 . Destroy Leader 72 | . 62 10 Trap Triggered on 0b10 10 | . 10 . Successful Hack 38 | . 38 . Disable Machine 15 | . 15 . Destroy Structure 17 | . 17 . Lose Combat Pursuer 30 | . 30 . Influence Decreases 517 | . 304 213 Entered New Map 79 | . . 79 Time Decay 398 | . 294 104 Lost Part 40 | . 10 30 Squads Dispatched 2 | . 2 . Investigation 1 | . 1 . Extermination . | . . . Reinforcement 1 | . 1 . Assault . | . . . Garrison . | . . . Intercept . | . . . Searches Triggered . | . . . Construction Impeded . | . . . Haulers Reinforced . | . . . Active Scanning Responses . | . . . Cargo Convoy Interrupts . | . . . Stealth | -11 -10 -10 --------- Run | Yrd Mat Sub Distress Signals 1 | . 1 . Communications Jammed . | . . . Distress Signals . | . . . Times Spotted 30 | . 19 11 Peak Tracking Total 4 | . 4 4 Tactical Retreats 2 | . 2 . Traps | -11 -10 -10 ------- Run | Yrd Mat Sub Traps Triggered 1 | . . 1 Indirectly . | . . . Trap Hack Attempts . | . . . Triggered . | . . . Disarmed . | . . . Reprogrammed 1 | . 1 . Reused 1 | . 1 . Traps Extracted . | . . . Installed . | . . . Triggered 1 | . 1 . Machines | -11 -10 -10 ---------- Run | Yrd Mat Sub Machines Disabled 2 | . 1 1 Max in Single Turn 1 | . 1 1 Machines Repaired . | . . . Machines Dismantled . | . . . Machines Sabotaged . | . . . Overloaded Fab Kills . | . . . Hacking | -11 -10 -10 --------- Run | Yrd Mat Sub Machines Accessed 7 | . 4 3 Terminals 4 | . 4 . Fabricators . | . . . Repair Stations . | . . . Recycling Units . | . . . Scanalyzers . | . . . Garrison Access . | . . . Total Hacks 14 | . 10 4 Successful 11 | . 7 4 Failed 3 | . 3 . Catastrophic . | . . . Database Lockouts . | . . . Manual . | . . . Terminals 10 | . 10 . Fabricators . | . . . Repair Stations . | . . . Recycling Units . | . . . Scanalyzers . | . . . Garrison Access . | . . . Terminal Hacks 11 | . 7 4 Record 1 | . . 1 Robot Analysis 1 | . 1 . Prototype ID Bank 3 | . 3 . Open Door 1 | . . 1 Locate Traps 1 | . 1 . Reprogram Traps 1 | . 1 . Zone Layout 1 | . 1 . Proto ID Catalog 1 | . . 1 Release Object 1 | . . 1 Fabricator Hacks . | . . . Repair Station Hacks . | . . . Recycling Unit Hacks . | . . . Scanalyzer . | . . . Garrison Access Hacks . | . . . Unauthorized Hacks . | . . . Terminals . | . . . Fabricators . | . . . Repair Stations . | . . . Recycling Units . | . . . Scanalyzers . | . . . Garrison Access . | . . . Data Cores Recovered . | . . . Used . | . . . Hacking Detections 3 | . 3 . Full Trace Events . | . . . Feedback Events . | . . . Feedback Blocked . | . . . Robot Schematics Acquired . | . . . Robots Built . | . . . Authchips . | . . . Time . | . . . Total Robot Build Rating . | . . . Part Schematics Acquired . | . . . Parts Built . | . . . Authchips . | . . . Time . | . . . Total Part Build Rating . | . . . Part Studies Acquired . | . . . Parts Repaired . | . . . Time . | . . . Parts Recycled . | . . . Recycled Matter . | . . . Retrieved Matter . | . . . Retrieved Components . | . . . Parts Scanalyzed . | . . . Part Schematics Acquired . | . . . Parts Damaged . | . . . Bothacking | -11 -10 -10 ------------ Run | Yrd Mat Sub Used RIF Installer . | . . . Robots Hacked . | . . . Non-combat . | . . . Combat . | . . . Robot Hacks Applied . | . . . Relay Couplers Released . | . . . Fabnet Peak Effective % . | . . . Robots Rewired . | . . . Allies Hacked . | . . . Hacks Repelled . | . . . Allies | -11 -10 -10 -------- Run | Yrd Mat Sub Total Allies . | . . . Largest Group . | . . . Highest-Rated Group . | . . . Highest-Rated Ally . | . . . Total Orders . | . . . Ally Attacks . | . . . Total Damage . | . . . Kills . | . . . Allies Corrupted . | . . . Allies Melted . | . . . Intel | -11 -10 -10 ------- Run | Yrd Mat Sub Active Infowar (turns) 708 | . 586 122 Optics 708 | . 586 122 Robot Analysis Total 1 | . 1 . Derelict Logs Recovered 1 | . . 1 Drone Launches . | . . . Drone Recoveries . | . . . Exploration | -11 -10 -10 ------------- Run | Yrd Mat Sub Turns Passed 2878 | 61 747 2070 Spaces Moved 1459 | 47 415 997 Core 1 | 1 . . Treads . | . . . Legs 1037 | . 40 997 Wheels 421 | 46 375 . Hover . | . . . Flight . | . . . Fastest Speed 50 | 50 90 120 Average Speed 160 | 98 95 190 Slowest Speed 260 | 100 190 260 Overloaded Moves . | . . . Propulsion Burnouts . | . . . Robots Hopped . | . . . Potential Cave-ins . | . . . Cave-ins Triggered . | . . . Exploration Rate (%) 33 | 4 61 34 Regions Visited 2 Branch Regions 1 Pre-discovered Areas 1 | . . 1 Known Exits Taken . | . . . Unknown Exits Taken 2 | 1 1 . Scrap Searched . | . . . Spaces Dug . | . . . Terrain Destroyed 152 | . 39 113 Melee . | . . . Projectile 3 | . 3 . AOE 149 | . 36 113 Terrain Rammed . | . . . Walls Destroyed . | . . . Machines Disabled . | . . . Actions | -11 -10 -10 --------- Run | Yrd Mat Sub Total 1873 | 58 702 1113 Wait 232 | . 192 40 Move 1457 | 46 414 997 Hop . | . . . Pick Up 25 | 6 10 9 Fast Attach 10 | 6 4 . Attach 10 | . 5 5 Detach . | . . . Swap 7 | . 4 3 Drop 23 | . 16 7 Fire 80 | . 42 38 Melee 18 | . 12 6 Ram 3 | . 3 . Kick . | . . . Crush . | . . . Escape Stasis . | . . . Rewire . | . . . Trap . | . . . Miscellaneous 8 | . . 8 Route ------- -11/Scrapyard -10/Materials (discovered 4 exits: [*Mat x2] / [*Min] / *Sub) -10/Subcaves (discovered 1 exit: [*Mat]) History --------- Turn | Location | Event 22 | -11/Scrapyard | Discovered new exit (range 15) 62 | -11/Scrapyard | Entered Materials 209 | -10/Materials | Discovered new exit (range 12) 301 | -10/Materials | Build established: Mutant 332 | -10/Materials | Discovered new exit (range 15) 551 | -10/Materials | Discovered new exit (range 8) 568 | -10/Materials | Discovered new exit (range 9) 809 | -10/Materials | Entered Subcaves 890 | -10/Subcaves | Core integrity fell below 50% 1077 | -10/Subcaves | Core integrity fell below 20% 1086 | -10/Subcaves | System corruption reached 10% 1290 | -10/Subcaves | Discovered new exit (range 12) 1503 | -10/Subcaves | Visited 4L-MR0's lab 1522 | -10/Subcaves | Found Tower Shield 1937 | -10/Subcaves | A swath of the cavern ceiling suddenly collapsed 2214 | -10/Subcaves | Released subatomizers from SUBCON Basin 2494 | -10/Subcaves | Learned location of Zion (-6) 2494 | -10/Subcaves | Met a Zionite searching for "candidates" 2859 | -10/Subcaves | Ambushed by Subdweller buried in earth 2862 | -10/Subcaves | Ambushed by Subdweller buried in earth 2868 | -10/Subcaves | Ambushed by Subdweller buried in earth 2879 | -10/Subcaves | Destroyed by 41-MH4(R) with Subdweller Machine Gun Last Messages --------------- System corrupted: Component data lost. System corrupted: Heat flow error (+152). Acquired 15 matter. Acquired 35 matter. |%NJ#=3S&5FJ,JHUEU89U8ZW8DBTE DU4BCZP Acquired 49 matter. System corrupted: IFF burst signal emitted. >SOV#S1XOJR8HPTZBQBYCRJ :W9#RNX